[Event "*** Titled Tuesday Blitz"]
[Site "Chess.com"]
[Date "2021.03.02"]
[Round "3"]
[White "shaheus"]
[Black "liczner"]
[Result "0-1"]
[WhiteElo "2445"]
[BlackElo "2756"]
[TimeControl "180+1"]
[EndTime "10:28:41 PST"]
[Termination "liczner won on time"]

1. e4 {[%clk 0:03:00.9]} 1... c6 {[%clk 0:02:59.3]} 2. Nf3 {[%clk 0:02:59.9]}
2... d5 {[%clk 0:03:00.2]} 3. Nc3 {[%clk 0:02:59.8]} 3... Bg4 {[%clk 0:03:00.1]}
4. Qe2 {[%clk 0:02:59.6]} 4... e6 {[%clk 0:02:59.6]} 5. exd5 {[%clk 0:02:59.6]}
5... Bxf3 {[%clk 0:02:42.4]} 6. Qxf3 {[%clk 0:02:58.5]} 6... cxd5 {[%clk
0:02:42.7]} 7. d4 {[%clk 0:02:39.1]} 7... Nc6 {[%clk 0:02:42.1]} 8. Ne2 {[%clk
0:02:37.9]} 8... Bd6 {[%clk 0:02:36.2]} 9. c3 {[%clk 0:02:37.4]} 9... Nf6 {[%clk
0:02:34.2]} 10. Bf4 {[%clk 0:02:37.2]} 10... O-O {[%clk 0:02:15.3]} 11. Ng3
{[%clk 0:02:29.4]} 11... Rb8 {[%clk 0:02:11.4]} 12. Be2 {[%clk 0:02:18.1]} 12...
b5 {[%clk 0:02:09.1]} 13. a3 {[%clk 0:02:15.4]} 13... a5 {[%clk 0:02:07.7]} 14.
O-O {[%clk 0:02:14.5]} 14... b4 {[%clk 0:02:06.1]} 15. axb4 {[%clk 0:02:13.9]}
15... axb4 {[%clk 0:02:07]} 16. Ra6 {[%clk 0:02:04.5]} 16... Bxf4 {[%clk
0:02:06.8]} 17. Qxf4 {[%clk 0:02:03.8]} 17... Ne7 {[%clk 0:02:06.4]} 18. Rfa1
{[%clk 0:01:50.1]} 18... Ng6 {[%clk 0:02:01.8]} 19. Qd2 {[%clk 0:01:45.5]} 19...
Qc7 {[%clk 0:01:54.4]} 20. cxb4 {[%clk 0:01:35.9]} 20... Rb7 {[%clk 0:01:17]}
21. b5 {[%clk 0:01:33.9]} 21... Rfb8 {[%clk 0:01:17.4]} 22. h3 {[%clk
0:01:24.7]} 22... h6 {[%clk 0:01:05.9]} 23. Rc1 {[%clk 0:01:15.9]} 23... Qf4
{[%clk 0:01:03.9]} 24. Qxf4 {[%clk 0:01:11.5]} 24... Nxf4 {[%clk 0:01:04.8]} 25.
Bf1 {[%clk 0:01:10.8]} 25... Ne4 {[%clk 0:00:56.1]} 26. Nxe4 {[%clk 0:00:59.4]}
26... dxe4 {[%clk 0:00:57]} 27. Bc4 {[%clk 0:00:51.7]} 27... Nd3 {[%clk
0:00:44]} 28. Rb1 {[%clk 0:00:39.3]} 28... Nb4 {[%clk 0:00:41]} 29. Ra4 {[%clk
0:00:35.4]} 29... Nd5 {[%clk 0:00:39.7]} 30. Ra6 {[%clk 0:00:21.8]} 30... Nc7
{[%clk 0:00:36.4]} 31. Rc6 {[%clk 0:00:15.7]} 31... Nxb5 {[%clk 0:00:36.5]} 32.
Bxb5 {[%clk 0:00:14]} 32... Rxb5 {[%clk 0:00:37.4]} 33. Rc2 {[%clk 0:00:13]}
33... f5 {[%clk 0:00:31.2]} 34. Kf1 {[%clk 0:00:12.5]} 34... Rb3 {[%clk
0:00:30.7]} 35. Ke2 {[%clk 0:00:12.3]} 35... Kf7 {[%clk 0:00:30.1]} 36. f3
{[%clk 0:00:10.6]} 36... exf3+ {[%clk 0:00:28.5]} 37. gxf3 {[%clk 0:00:11]}
37... Kf6 {[%clk 0:00:29.4]} 38. Rd2 {[%clk 0:00:10.3]} 38... Kg5 {[%clk
0:00:27.8]} 39. Rg1+ {[%clk 0:00:08.6]} 39... Kf6 {[%clk 0:00:28.2]} 40. Rb1
{[%clk 0:00:08.5]} 40... R8b7 {[%clk 0:00:27]} 41. h4 {[%clk 0:00:02.7]} 41...
Kg6 {[%clk 0:00:26.4]} 0-1

[Event "*** Titled Tuesday Blitz"]
[Site "Chess.com"]
[Date "2021.03.02"]
[Round "3"]
[White "Pantata007"]
[Black "DrCeltic"]
[Result "0-1"]
[WhiteElo "2237"]
[BlackElo "2435"]
[TimeControl "180+1"]
[EndTime "10:28:42 PST"]
[Termination "DrCeltic won by checkmate"]

1. d4 {[%clk 0:03:00.9]} 1... d5 {[%clk 0:02:59.8]} 2. c4 {[%clk 0:03:00.8]}
2... c6 {[%clk 0:03:00]} 3. Nc3 {[%clk 0:03:00.9]} 3... Nf6 {[%clk 0:03:00]} 4.
e3 {[%clk 0:03:01]} 4... e6 {[%clk 0:02:58.6]} 5. Nf3 {[%clk 0:03:01]} 5... Be7
{[%clk 0:02:58.8]} 6. Bd3 {[%clk 0:02:58.8]} 6... O-O {[%clk 0:02:59]} 7. O-O
{[%clk 0:02:49.9]} 7... b6 {[%clk 0:02:59.1]} 8. e4 {[%clk 0:02:48.7]} 8... dxe4
{[%clk 0:02:58.7]} 9. Nxe4 {[%clk 0:02:49.6]} 9... Nbd7 {[%clk 0:02:57.1]} 10.
Re1 {[%clk 0:02:47.6]} 10... Bb7 {[%clk 0:02:57]} 11. Bf4 {[%clk 0:02:47.3]}
11... Nxe4 {[%clk 0:02:54.9]} 12. Bxe4 {[%clk 0:02:46.8]} 12... Nf6 {[%clk
0:02:55.8]} 13. Bc2 {[%clk 0:02:45.8]} 13... c5 {[%clk 0:02:54.7]} 14. Qd3
{[%clk 0:02:19.2]} 14... Bxf3 {[%clk 0:02:49]} 15. Qxf3 {[%clk 0:02:15.4]} 15...
Qxd4 {[%clk 0:02:48]} 16. Be5 {[%clk 0:00:57.8]} 16... Qg4 {[%clk 0:02:44.7]}
17. Qb7 {[%clk 0:00:51.9]} 17... Rfe8 {[%clk 0:02:40.1]} 18. Ba4 {[%clk
0:00:50.2]} 18... Qxc4 {[%clk 0:02:26.1]} 19. Bxe8 {[%clk 0:00:46.1]} 19... Rxe8
{[%clk 0:02:27]} 20. Qxa7 {[%clk 0:00:44.6]} 20... Nd5 {[%clk 0:02:26.2]} 21. b3
{[%clk 0:00:27.6]} 21... Qc2 {[%clk 0:02:23.4]} 22. Rac1 {[%clk 0:00:25.4]}
22... Qf5 {[%clk 0:02:21.1]} 23. a4 {[%clk 0:00:21.2]} 23... Bg5 {[%clk
0:02:20.4]} 24. Rcd1 {[%clk 0:00:16.5]} 24... Qc2 {[%clk 0:02:07.6]} 25. Bg3
{[%clk 0:00:11.4]} 25... Qxb3 {[%clk 0:01:59.9]} 26. Rb1 {[%clk 0:00:07]} 26...
Qa2 {[%clk 0:01:54.7]} 27. Ra1 {[%clk 0:00:04.6]} 27... Qc2 {[%clk 0:01:54.6]}
28. a5 {[%clk 0:00:02.3]} 28... bxa5 {[%clk 0:01:47.3]} 29. Rxa5 {[%clk
0:00:03.2]} 29... c4 {[%clk 0:01:35.8]} 30. Rxd5 {[%clk 0:00:02.8]} 30... h5
{[%clk 0:01:29.6]} 31. Rdd1 {[%clk 0:00:02.7]} 31... c3 {[%clk 0:01:27.8]} 32.
Be5 {[%clk 0:00:02.9]} 32... Bd2 {[%clk 0:01:26.4]} 33. Qd7 {[%clk 0:00:03]}
33... Rf8 {[%clk 0:01:24.4]} 34. Rf1 {[%clk 0:00:03.5]} 34... Qf5 {[%clk
0:01:21.9]} 35. Bxc3 {[%clk 0:00:03.3]} 35... Bxc3 {[%clk 0:01:20.2]} 36. Rd3
{[%clk 0:00:03.4]} 36... Bf6 {[%clk 0:01:18.2]} 37. Rf3 {[%clk 0:00:03.8]} 37...
Qg6 {[%clk 0:01:18.4]} 38. h3 {[%clk 0:00:04.1]} 38... h4 {[%clk 0:01:17.1]} 39.
Rd1 {[%clk 0:00:04.3]} 39... Rd8 {[%clk 0:01:16.8]} 40. Qxd8+ {[%clk 0:00:03.8]}
40... Bxd8 {[%clk 0:01:16.7]} 41. Rxd8+ {[%clk 0:00:04.1]} 41... Kh7 {[%clk
0:01:16.9]} 42. Rd4 {[%clk 0:00:04.3]} 42... Qb1+ {[%clk 0:01:16]} 43. Kh2
{[%clk 0:00:04.4]} 43... Qb8+ {[%clk 0:01:16.4]} 44. g3 {[%clk 0:00:04.6]} 44...
hxg3+ {[%clk 0:01:16]} 45. Rxg3 {[%clk 0:00:05.5]} 45... Qe5 {[%clk 0:01:12.7]}
46. Rg4 {[%clk 0:00:04.9]} 46... g6 {[%clk 0:01:12.7]} 47. h4 {[%clk 0:00:05.1]}
47... Qf5 {[%clk 0:01:09.8]} 48. Kg2 {[%clk 0:00:05.2]} 48... e5 {[%clk
0:01:08.3]} 49. Rg5 {[%clk 0:00:05.4]} 49... Qe4+ {[%clk 0:01:07.9]} 50. Kh2
{[%clk 0:00:05.8]} 50... Kh6 {[%clk 0:00:59.8]} 51. R5g4 {[%clk 0:00:05.9]}
51... Qf5 {[%clk 0:00:57.9]} 52. Kg2 {[%clk 0:00:05.8]} 52... Kg7 {[%clk
0:00:57]} 53. Rg5 {[%clk 0:00:04.4]} 53... Qe4+ {[%clk 0:00:56.7]} 54. Kh3
{[%clk 0:00:02.4]} 54... Kf8 {[%clk 0:00:56.6]} 55. R5g4 {[%clk 0:00:01.9]}
55... Qh1# {[%clk 0:00:56.3]} 0-1

[Event "*** Titled Tuesday Blitz"]
[Site "Chess.com"]
[Date "2021.03.02"]
[Round "3"]
[White "jposthuma"]
[Black "Kozok"]
[Result "0-1"]
[WhiteElo "2717"]
[BlackElo "2456"]
[TimeControl "180+1"]
[EndTime "10:28:44 PST"]
[Termination "Kozok won on time"]

1. d4 {[%clk 0:03:00.9]} 1... Nf6 {[%clk 0:02:57.4]} 2. c4 {[%clk 0:03:01.2]}
2... e6 {[%clk 0:02:56.3]} 3. g3 {[%clk 0:03:01.3]} 3... d5 {[%clk 0:02:54.5]}
4. Bg2 {[%clk 0:03:01.4]} 4... dxc4 {[%clk 0:02:54.4]} 5. Nf3 {[%clk 0:03:01.3]}
5... Bb4+ {[%clk 0:02:51.5]} 6. Bd2 {[%clk 0:02:58.6]} 6... a5 {[%clk
0:02:50.6]} 7. Qc2 {[%clk 0:02:53.8]} 7... b5 {[%clk 0:02:48.2]} 8. Ne5 {[%clk
0:02:22]} 8... Ra7 {[%clk 0:02:24.7]} 9. O-O {[%clk 0:02:16.5]} 9... Bb7 {[%clk
0:02:20.3]} 10. Bxb7 {[%clk 0:01:30.5]} 10... Rxb7 {[%clk 0:02:21.2]} 11. a3
{[%clk 0:01:30.1]} 11... Bxd2 {[%clk 0:01:36.2]} 12. Qxd2 {[%clk 0:01:31]} 12...
c6 {[%clk 0:01:36.6]} 13. Rd1 {[%clk 0:01:25.4]} 13... O-O {[%clk 0:01:35.6]}
14. Nc3 {[%clk 0:01:19.3]} 14... a4 {[%clk 0:01:25.5]} 15. e4 {[%clk 0:01:09.6]}
15... Qb6 {[%clk 0:01:18.3]} 16. Qe3 {[%clk 0:00:59]} 16... Nbd7 {[%clk
0:01:15.5]} 17. Nf3 {[%clk 0:00:53.4]} 17... c5 {[%clk 0:01:11.6]} 18. d5 {[%clk
0:00:52.9]} 18... exd5 {[%clk 0:01:03.1]} 19. Nxd5 {[%clk 0:00:53.3]} 19... Nxd5
{[%clk 0:01:00.7]} 20. Rxd5 {[%clk 0:00:54.2]} 20... Nf6 {[%clk 0:00:59.9]} 21.
Rf5 {[%clk 0:00:37.3]} 21... Re8 {[%clk 0:00:57.2]} 22. e5 {[%clk 0:00:33]}
22... Nd5 {[%clk 0:00:27.9]} 23. Qe4 {[%clk 0:00:28.8]} 23... Rd7 {[%clk
0:00:25.8]} 24. Ng5 {[%clk 0:00:25.2]} 24... Qg6 {[%clk 0:00:21.7]} 25. Re1
{[%clk 0:00:14]} 25... h6 {[%clk 0:00:21.6]} 26. Nf3 {[%clk 0:00:13]} 26... Ne7
{[%clk 0:00:20.6]} 27. Rf4 {[%clk 0:00:11.6]} 27... Qxe4 {[%clk 0:00:19.9]} 28.
Rfxe4 {[%clk 0:00:12.5]} 28... Nc6 {[%clk 0:00:20]} 29. e6 {[%clk 0:00:12.7]}
29... Rde7 {[%clk 0:00:18.6]} 30. exf7+ {[%clk 0:00:12.4]} 30... Kxf7 {[%clk
0:00:19.5]} 31. Rxe7+ {[%clk 0:00:11.9]} 31... Rxe7 {[%clk 0:00:20.4]} 32. Rd1
{[%clk 0:00:11.9]} 32... Re2 {[%clk 0:00:19.5]} 33. Rd7+ {[%clk 0:00:10.3]}
33... Ke6 {[%clk 0:00:18.4]} 34. Rxg7 {[%clk 0:00:09.6]} 34... Rxb2 {[%clk
0:00:18.4]} 35. Rg6+ {[%clk 0:00:10.2]} 35... Kd7 {[%clk 0:00:18.1]} 36. Rg7+
{[%clk 0:00:04.8]} 36... Kc8 {[%clk 0:00:17.5]} 37. Rg6 {[%clk 0:00:02.9]} 37...
Kb7 {[%clk 0:00:17.5]} 38. Rg7+ {[%clk 0:00:02.7]} 38... Kb6 {[%clk 0:00:14.3]}
39. Rg6 {[%clk 0:00:03.3]} 39... c3 {[%clk 0:00:10.6]} 40. Ne5 {[%clk
0:00:02.2]} 40... c2 {[%clk 0:00:06.8]} 0-1

[Event "*** Titled Tuesday Blitz"]
[Site "Chess.com"]
[Date "2021.03.02"]
[Round "3"]
[White "Supernotar"]
[Black "Genghis_K"]
[Result "1/2-1/2"]
[WhiteElo "2684"]
[BlackElo "2921"]
[TimeControl "180+1"]
[EndTime "10:28:45 PST"]
[Termination "Game drawn by repetition"]

1. d4 {[%clk 0:03:00.9]} 1... Nf6 {[%clk 0:02:59.1]} 2. c4 {[%clk 0:03:00.6]}
2... e6 {[%clk 0:02:58.2]} 3. Nf3 {[%clk 0:03:00.6]} 3... c5 {[%clk 0:02:57.6]}
4. d5 {[%clk 0:02:59.8]} 4... exd5 {[%clk 0:02:58.1]} 5. cxd5 {[%clk 0:03:00.6]}
5... Bd6 {[%clk 0:02:58.6]} 6. Nc3 {[%clk 0:03:00.3]} 6... O-O {[%clk 0:02:59]}
7. g3 {[%clk 0:03:00.5]} 7... Re8 {[%clk 0:02:57.8]} 8. Bg2 {[%clk 0:03:00.3]}
8... Bc7 {[%clk 0:02:58.3]} 9. O-O {[%clk 0:03:00.1]} 9... d6 {[%clk 0:02:58.8]}
10. Nd2 {[%clk 0:02:59.9]} 10... Nbd7 {[%clk 0:02:58.6]} 11. b3 {[%clk
0:02:57.4]} 11... a6 {[%clk 0:02:57.5]} 12. a4 {[%clk 0:02:56.4]} 12... Rb8
{[%clk 0:02:57.8]} 13. Bb2 {[%clk 0:02:56.5]} 13... b5 {[%clk 0:02:58]} 14. axb5
{[%clk 0:02:56.3]} 14... axb5 {[%clk 0:02:58.6]} 15. e4 {[%clk 0:02:45.7]} 15...
Ne5 {[%clk 0:02:57.8]} 16. Qc2 {[%clk 0:02:41.4]} 16... h5 {[%clk 0:02:55.5]}
17. h3 {[%clk 0:02:32.5]} 17... Ng6 {[%clk 0:02:54.3]} 18. Rae1 {[%clk
0:02:19.1]} 18... h4 {[%clk 0:02:52.3]} 19. g4 {[%clk 0:01:58.2]} 19... Nf4
{[%clk 0:02:51.1]} 20. Nf3 {[%clk 0:01:31.6]} 20... b4 {[%clk 0:02:42.8]} 21.
Ne2 {[%clk 0:01:18.7]} 21... Nxe2+ {[%clk 0:02:12.7]} 22. Rxe2 {[%clk
0:01:19.6]} 22... Ba6 {[%clk 0:02:11.9]} 23. Rfe1 {[%clk 0:01:16.8]} 23... Bxe2
{[%clk 0:02:10.1]} 24. Rxe2 {[%clk 0:01:17.7]} 24... Nd7 {[%clk 0:02:08.9]} 25.
Bc1 {[%clk 0:01:03.4]} 25... Ra8 {[%clk 0:02:03.2]} 26. Bg5 {[%clk 0:00:57.5]}
26... Ra1+ {[%clk 0:02:02.4]} 27. Kh2 {[%clk 0:00:57.4]} 27... Qa8 {[%clk
0:01:59.2]} 28. Nxh4 {[%clk 0:00:46.4]} 28... Bd8 {[%clk 0:01:57.1]} 29. Bxd8
{[%clk 0:00:42.3]} 29... Qxd8 {[%clk 0:01:58]} 30. Nf5 {[%clk 0:00:40.1]} 30...
Qf6 {[%clk 0:01:58.1]} 31. f4 {[%clk 0:00:37.3]} 31... g5 {[%clk 0:01:42.2]} 32.
e5 {[%clk 0:00:24.8]} 32... dxe5 {[%clk 0:01:40.8]} 33. fxg5 {[%clk 0:00:24.6]}
33... Qxg5 {[%clk 0:01:39.9]} 34. Rf2 {[%clk 0:00:23.8]} 34... e4 {[%clk
0:01:27.6]} 35. Bxe4 {[%clk 0:00:17]} 35... Ne5 {[%clk 0:01:26.4]} 36. d6 {[%clk
0:00:11.7]} 36... Ng6 {[%clk 0:01:14.6]} 37. Bd5 {[%clk 0:00:08.7]} 37... Rc1
{[%clk 0:01:03.1]} 38. d7 {[%clk 0:00:06]} 38... Rd8 {[%clk 0:01:00.5]} 39. Qe4
{[%clk 0:00:05.8]} 39... Rxd7 {[%clk 0:00:50.7]} 40. Qe8+ {[%clk 0:00:05.2]}
40... Nf8 {[%clk 0:00:51.4]} 41. Bxf7+ {[%clk 0:00:02.2]} 41... Rxf7 {[%clk
0:00:41]} 42. Nh6+ {[%clk 0:00:02.4]} 42... Qxh6 {[%clk 0:00:41.6]} 43. Qxf7+
{[%clk 0:00:02.9]} 43... Kh8 {[%clk 0:00:42.2]} 44. Qxf8+ {[%clk 0:00:03.2]}
44... Qxf8 {[%clk 0:00:42.9]} 45. Rxf8+ {[%clk 0:00:03.7]} 45... Kg7 {[%clk
0:00:43.8]} 46. Rf3 {[%clk 0:00:03.9]} 46... Rc3 {[%clk 0:00:41.9]} 47. Kg3
{[%clk 0:00:03.6]} 47... Rxf3+ {[%clk 0:00:42.2]} 48. Kxf3 {[%clk 0:00:03.4]}
48... c4 {[%clk 0:00:43.1]} 49. Ke3 {[%clk 0:00:01.3]} 49... c3 {[%clk
0:00:37.5]} 50. Kd3 {[%clk 0:00:01.7]} 50... Kf6 {[%clk 0:00:36.4]} 51. Kc2
{[%clk 0:00:02.6]} 51... Kg5 {[%clk 0:00:36.5]} 52. Kd3 {[%clk 0:00:03.1]} 52...
Kh4 {[%clk 0:00:37.1]} 53. Kc2 {[%clk 0:00:04]} 53... Kg5 {[%clk 0:00:37.8]} 54.
Kd3 {[%clk 0:00:04.4]} 54... Kh4 {[%clk 0:00:38.2]} 55. Kc2 {[%clk 0:00:05]}
55... Kg5 {[%clk 0:00:38.8]} 1/2-1/2

[Event "*** Titled Tuesday Blitz"]
[Site "Chess.com"]
[Date "2021.03.02"]
[Round "3"]
[White "m_ezat"]
[Black "gumimis"]
[Result "0-1"]
[WhiteElo "2518"]
[BlackElo "2291"]
[TimeControl "180+1"]
[EndTime "10:28:45 PST"]
[Termination "gumimis won on time"]

1. d4 {[%clk 0:02:51.3]} 1... Nf6 {[%clk 0:02:59.4]} 2. c4 {[%clk 0:02:45.6]}
2... c5 {[%clk 0:02:57]} 3. d5 {[%clk 0:02:39.2]} 3... b6 {[%clk 0:02:57.2]} 4.
Nc3 {[%clk 0:02:30]} 4... g6 {[%clk 0:02:54.5]} 5. e4 {[%clk 0:02:28.3]} 5... d6
{[%clk 0:02:54.6]} 6. f4 {[%clk 0:02:27.1]} 6... Bg7 {[%clk 0:02:54.7]} 7. Nf3
{[%clk 0:02:26]} 7... O-O {[%clk 0:02:54.5]} 8. Bd3 {[%clk 0:02:17]} 8... e6
{[%clk 0:02:54.3]} 9. O-O {[%clk 0:02:13.3]} 9... exd5 {[%clk 0:02:54.3]} 10.
cxd5 {[%clk 0:02:12.6]} 10... Bb7 {[%clk 0:02:47.6]} 11. a4 {[%clk 0:02:02.2]}
11... Nbd7 {[%clk 0:02:40]} 12. a5 {[%clk 0:01:55]} 12... bxa5 {[%clk
0:02:36.6]} 13. Bb5 {[%clk 0:01:47.2]} 13... Nb6 {[%clk 0:02:21.5]} 14. Kh1
{[%clk 0:01:36.6]} 14... a6 {[%clk 0:02:14.4]} 15. Bd3 {[%clk 0:01:35.7]} 15...
Re8 {[%clk 0:02:10.4]} 16. Bc2 {[%clk 0:01:28.4]} 16... Rb8 {[%clk 0:02:05.6]}
17. f5 {[%clk 0:01:20.6]} 17... Ba8 {[%clk 0:01:58.1]} 18. fxg6 {[%clk 0:01:19]}
18... hxg6 {[%clk 0:01:57.1]} 19. Ng5 {[%clk 0:01:18.5]} 19... Nc4 {[%clk
0:01:52.4]} 20. Ra2 {[%clk 0:00:59.6]} 20... Re7 {[%clk 0:01:45.8]} 21. Bd3
{[%clk 0:00:55.4]} 21... Ne5 {[%clk 0:01:43.8]} 22. Bxa6 {[%clk 0:00:49.9]}
22... c4 {[%clk 0:01:37.6]} 23. Be3 {[%clk 0:00:45.7]} 23... Nfg4 {[%clk
0:01:20.4]} 24. Bf4 {[%clk 0:00:42.1]} 24... Qb6 {[%clk 0:01:02.1]} 25. Bxc4
{[%clk 0:00:25.7]} 25... Nf2+ {[%clk 0:00:54.6]} 26. Rxf2 {[%clk 0:00:25.4]}
26... Qxf2 {[%clk 0:00:55.5]} 27. Bg3 {[%clk 0:00:20.4]} 27... Qe3 {[%clk
0:00:47.7]} 28. Bxe5 {[%clk 0:00:14.2]} 28... Bxe5 {[%clk 0:00:47.1]} 29. Nf3
{[%clk 0:00:11]} 29... Bxc3 {[%clk 0:00:43.2]} 30. bxc3 {[%clk 0:00:10.9]} 30...
Qxe4 {[%clk 0:00:39.7]} 31. Bd3 {[%clk 0:00:07.4]} 31... Qxd5 {[%clk 0:00:38.1]}
32. Rd2 {[%clk 0:00:06.7]} 32... Qc5 {[%clk 0:00:28.3]} 33. h3 {[%clk
0:00:06.7]} 33... Qxc3 {[%clk 0:00:28]} 34. Rc2 {[%clk 0:00:06.9]} 34... Qf6
{[%clk 0:00:25.5]} 35. Rf2 {[%clk 0:00:05.9]} 35... Qc3 {[%clk 0:00:21.4]} 36.
Bf1 {[%clk 0:00:02.3]} 36... Qb4 {[%clk 0:00:17.9]} 0-1

[Event "*** Titled Tuesday Blitz"]
[Site "Chess.com"]
[Date "2021.03.02"]
[Round "3"]
[White "AryanTari"]
[Black "Thjop"]
[Result "0-1"]
[WhiteElo "2892"]
[BlackElo "2673"]
[TimeControl "180+1"]
[EndTime "10:28:46 PST"]
[Termination "Thjop won on time"]

1. Nf3 {[%clk 0:03:00.9]} 1... Nf6 {[%clk 0:03:00.1]} 2. c4 {[%clk 0:03:00.3]}
2... g6 {[%clk 0:03:01]} 3. b3 {[%clk 0:02:59.4]} 3... Bg7 {[%clk 0:03:01.6]} 4.
Bb2 {[%clk 0:02:59.8]} 4... d6 {[%clk 0:03:02.1]} 5. d4 {[%clk 0:02:57]} 5...
O-O {[%clk 0:03:01.3]} 6. g3 {[%clk 0:02:56.8]} 6... c5 {[%clk 0:02:52]} 7. Bg2
{[%clk 0:02:52.9]} 7... Qa5+ {[%clk 0:02:51.5]} 8. Qd2 {[%clk 0:02:41.4]} 8...
Qxd2+ {[%clk 0:02:49.3]} 9. Nbxd2 {[%clk 0:02:42.3]} 9... Nc6 {[%clk 0:02:47.9]}
10. d5 {[%clk 0:02:33.1]} 10... Na5 {[%clk 0:02:45]} 11. a3 {[%clk 0:02:15.6]}
11... b6 {[%clk 0:02:36.1]} 12. b4 {[%clk 0:02:15.5]} 12... Nb7 {[%clk
0:02:32.6]} 13. O-O {[%clk 0:02:14.3]} 13... Bf5 {[%clk 0:02:20.7]} 14. Nh4
{[%clk 0:02:00.9]} 14... Bd7 {[%clk 0:02:17.2]} 15. b5 {[%clk 0:01:50.9]} 15...
a6 {[%clk 0:02:06.1]} 16. a4 {[%clk 0:01:50.8]} 16... Ra7 {[%clk 0:01:50.2]} 17.
e4 {[%clk 0:01:19.1]} 17... Rfa8 {[%clk 0:01:40.7]} 18. Nb3 {[%clk 0:01:19.1]}
18... axb5 {[%clk 0:01:37.8]} 19. axb5 {[%clk 0:01:20]} 19... Rxa1 {[%clk
0:01:37.8]} 20. Rxa1 {[%clk 0:01:20.9]} 20... Rxa1+ {[%clk 0:01:37.1]} 21. Bxa1
{[%clk 0:01:21.8]} 21... Ne8 {[%clk 0:01:18.2]} 22. Bxg7 {[%clk 0:01:19]} 22...
Nxg7 {[%clk 0:01:18.2]} 23. f4 {[%clk 0:01:19.7]} 23... f6 {[%clk 0:01:10.4]}
24. Nf3 {[%clk 0:01:17.3]} 24... Kf7 {[%clk 0:01:09]} 25. Kf2 {[%clk 0:01:17.2]}
25... Bg4 {[%clk 0:01:07.4]} 26. Nfd2 {[%clk 0:00:57.9]} 26... Bd7 {[%clk
0:00:57.4]} 27. Nb1 {[%clk 0:00:55.1]} 27... Ke8 {[%clk 0:00:56.1]} 28. Nc3
{[%clk 0:00:52.8]} 28... Kd8 {[%clk 0:00:56.4]} 29. Bf3 {[%clk 0:00:46.9]} 29...
Kc7 {[%clk 0:00:56.7]} 30. g4 {[%clk 0:00:45.8]} 30... g5 {[%clk 0:00:54.7]} 31.
fxg5 {[%clk 0:00:44.6]} 31... fxg5 {[%clk 0:00:55]} 32. Kg3 {[%clk 0:00:35]}
32... Nd8 {[%clk 0:00:54.9]} 33. Nc1 {[%clk 0:00:27.1]} 33... Nf7 {[%clk
0:00:54.2]} 34. Nd3 {[%clk 0:00:27.2]} 34... h6 {[%clk 0:00:51.3]} 35. h4 {[%clk
0:00:25.4]} 35... Ne8 {[%clk 0:00:42]} 36. hxg5 {[%clk 0:00:18.2]} 36... hxg5
{[%clk 0:00:42.9]} 37. e5 {[%clk 0:00:18.9]} 37... dxe5 {[%clk 0:00:38]} 38. Be4
{[%clk 0:00:19.4]} 38... Nf6 {[%clk 0:00:24.6]} 39. Bg6 {[%clk 0:00:19.6]} 39...
e4 {[%clk 0:00:17.1]} 40. Nf2 {[%clk 0:00:05]} 40... Ne5 {[%clk 0:00:14.2]} 41.
Bxe4 {[%clk 0:00:02.3]} 41... Nexg4 {[%clk 0:00:10.7]} 0-1

[Event "*** Titled Tuesday Blitz"]
[Site "Chess.com"]
[Date "2021.03.02"]
[Round "3"]
[White "bakki78"]
[Black "serhanberat_ozdemir"]
[Result "1-0"]
[WhiteElo "2781"]
[BlackElo "2526"]
[TimeControl "180+1"]
[EndTime "10:28:46 PST"]
[Termination "bakki78 won on time"]

1. e4 {[%clk 0:03:00.9]} 1... c5 {[%clk 0:02:55.4]} 2. Nf3 {[%clk 0:02:59.9]}
2... e6 {[%clk 0:02:55.8]} 3. g3 {[%clk 0:02:58.6]} 3... d5 {[%clk 0:02:55.5]}
4. exd5 {[%clk 0:02:58.3]} 4... exd5 {[%clk 0:02:56.4]} 5. d4 {[%clk 0:02:58.7]}
5... Nf6 {[%clk 0:02:57]} 6. Bg2 {[%clk 0:02:58.1]} 6... Nc6 {[%clk 0:02:57.5]}
7. O-O {[%clk 0:02:57.4]} 7... Be7 {[%clk 0:02:57.6]} 8. dxc5 {[%clk 0:02:51.8]}
8... Bxc5 {[%clk 0:02:51.9]} 9. Bg5 {[%clk 0:02:50.6]} 9... O-O {[%clk 0:02:51]}
10. Nc3 {[%clk 0:02:48.6]} 10... Be6 {[%clk 0:02:50.2]} 11. Qd3 {[%clk
0:02:38.6]} 11... h6 {[%clk 0:02:48.4]} 12. Bxf6 {[%clk 0:02:26.1]} 12... Qxf6
{[%clk 0:02:49.3]} 13. Nxd5 {[%clk 0:02:24.8]} 13... Bxd5 {[%clk 0:02:38.1]} 14.
Qxd5 {[%clk 0:02:24]} 14... Bb6 {[%clk 0:02:39]} 15. c3 {[%clk 0:02:22]} 15...
Rad8 {[%clk 0:02:34.5]} 16. Qb5 {[%clk 0:02:13.3]} 16... Rfe8 {[%clk 0:02:32.1]}
17. a4 {[%clk 0:02:12.2]} 17... Ne5 {[%clk 0:02:09]} 18. Nd4 {[%clk 0:01:50.5]}
18... a6 {[%clk 0:01:33.8]} 19. Qb3 {[%clk 0:01:43.5]} 19... Re7 {[%clk
0:01:23.8]} 20. Rad1 {[%clk 0:01:40.1]} 20... Red7 {[%clk 0:01:21.8]} 21. a5
{[%clk 0:01:39]} 21... Bxd4 {[%clk 0:01:09.4]} 22. Rxd4 {[%clk 0:01:35.6]} 22...
Rxd4 {[%clk 0:01:01]} 23. cxd4 {[%clk 0:01:33.6]} 23... Rxd4 {[%clk 0:01:01.8]}
24. Qxb7 {[%clk 0:01:31.3]} 24... Rd2 {[%clk 0:00:56.6]} 25. b4 {[%clk 0:01:25]}
25... Rb2 {[%clk 0:00:53.5]} 26. Qc8+ {[%clk 0:01:13.6]} 26... Kh7 {[%clk
0:00:51.6]} 27. Qc3 {[%clk 0:01:13.2]} 27... Ng4 {[%clk 0:00:39.2]} 28. Qxf6
{[%clk 0:01:01.7]} 28... Nxf6 {[%clk 0:00:40.1]} 29. Ra1 {[%clk 0:00:59.6]}
29... Rxb4 {[%clk 0:00:39.6]} 30. Bf1 {[%clk 0:00:59.6]} 30... Kg8 {[%clk
0:00:22.1]} 31. Bxa6 {[%clk 0:00:59]} 31... Kf8 {[%clk 0:00:21.2]} 32. Bf1
{[%clk 0:00:57.8]} 32... Rb7 {[%clk 0:00:20.7]} 33. a6 {[%clk 0:00:53.3]} 33...
Ra7 {[%clk 0:00:21.2]} 34. Rb1 {[%clk 0:00:52]} 34... Ke7 {[%clk 0:00:19.3]} 35.
Rb8 {[%clk 0:00:40.9]} 35... Kd6 {[%clk 0:00:12]} 36. h4 {[%clk 0:00:39]} 36...
Ne4 {[%clk 0:00:10.5]} 37. Rg8 {[%clk 0:00:31.5]} 37... Nc5 {[%clk 0:00:08.8]}
38. Rxg7 {[%clk 0:00:30.3]} 38... Nxa6 {[%clk 0:00:08.7]} 39. Bxa6 {[%clk
0:00:29.6]} 39... Rxa6 {[%clk 0:00:07.5]} 40. Rxf7 {[%clk 0:00:29.7]} 40... Ke6
{[%clk 0:00:06.5]} 41. Rf4 {[%clk 0:00:29.7]} 41... Ra5 {[%clk 0:00:05.3]} 42.
Kg2 {[%clk 0:00:29.9]} 42... h5 {[%clk 0:00:04.9]} 43. Rf8 {[%clk 0:00:28.4]}
43... Ke5 {[%clk 0:00:04]} 44. Rg8 {[%clk 0:00:28.4]} 44... Kf6 {[%clk
0:00:03.9]} 45. Rg5 {[%clk 0:00:27.9]} 45... Rxg5 {[%clk 0:00:02.6]} 46. hxg5+
{[%clk 0:00:28]} 46... Kxg5 {[%clk 0:00:03.5]} 47. Kh3 {[%clk 0:00:28.2]} 1-0